Cogmind - Beta 13 @@@ ROGUE MODE // 2024.04.25 @ 21:35:29 Player: Alphabethead Result: Destroyed by GL-AX6(R) with Subdweller Laser Performance ------------- Evolutions (0) 0 Regions Visited (3) 600 Robots Destroyed (22) 110 Value Destroyed (432) 432 Prototype IDs (0) 0 Alien Tech Used (0) 0 Bonus (0) 0 TOTAL SCORE: 1142 Bonus ------- None Cogmind --------- Core Integrity 0/250 Matter 286/300 Energy 250/250 System Corruption 0% Temperature Cool (6) Movement Rolling (90) Location -10/Subcaves Parts ------- > --- POWER (1) -------- Ion Engine > --- PROPULSION (2) --- Wheel Compact Wheel > --- UTILITY (2) ------ Improved Heat Sink Medium Storage Unit > --- WEAPON (2) ------- Medium Laser Light Assault Rifle > --- INVENTORY (10) --- Targeting Computer ECM Suite Light Armor Plating Light Assault Rifle Grenade Launcher Mining Laser Peak State ------------ > --- POWER ------------ Ion Engine > --- PROPULSION ------- Wheel Compact Wheel > --- UTILITY ---------- Improved Heat Sink Medium Storage Unit > --- WEAPON ----------- Medium Laser Light Assault Rifle > --- INVENTORY -------- Wheel Targeting Computer ECM Suite Light Armor Plating Light Assault Rifle Mining Laser [Rating: 9] Favorites ----------- Power Ion Engine Engine Ion Engine Propulsion Wheel Wheel Wheel Utility Medium Storage Unit Device Seismic Detector Storage Medium Storage Unit Protection Light Armor Plating Weapon Medium Laser Energy Gun Medium Laser Ballistic Gun Assault Rifle Build | -11 -10 -10 -10 ------- Run | Yrd Mat Min Sub Slots Evolved . | . . . . Power . | . . . . Propulsion . | . . . . Utility . | . . . . Weapon . | . . . . Parts Attached 17 | 6 4 5 2 Power 3 | 1 1 1 . Engine 3 | 1 1 1 . Core . | . . . . Reactor . | . . . . Propulsion 5 | 2 1 1 1 Treads . | . . . . Leg . | . . . . Wheel 5 | 2 1 1 1 Hover . | . . . . Flight . | . . . . Utility 5 | 1 2 2 . Device 2 | . 1 1 . Storage 2 | 1 . 1 . Processor . | . . . . Hackware . | . . . . Protection 1 | . 1 . . Artifact . | . . . . Weapon 4 | 2 . 1 1 Energy Gun 1 | 1 . . . Energy Cannon . | . . . . Ballistic Gun 3 | 1 . 1 1 Ballistic Cannon . | . . . . Launcher . | . . . . Special Weapon . | . . . . Impact Weapon . | . . . . Slashing Weapon . | . . . . Piercing Weapon . | . . . . Special Melee Weapon . | . . . . Unidentified Prototypes . | . . . . Parts Lost 6 | . 1 3 2 Power 1 | . . 1 . Propulsion 2 | . 1 . 1 Utility 1 | . . 1 . Weapon 2 | . . 1 1 Highest Loss Streak 1 | . 1 1 1 To Critical Strikes . | . . . . Average Slot Usage (%) 96 | . 96 95 98 Engine 14 | . 14 14 14 Wheel 27 | . 24 28 27 Device 11 | . 12 10 14 Storage 14 | . 14 14 14 Energy Gun 14 | . 14 14 14 Ballistic Gun 14 | . 14 14 14 Naked Turns . | . . . . Heaviest Build 20 | 14 17 20 19 Greatest Support 26 | 20 26 26 26 Greatest Overweight (x) 4 | 4 1 . 1 Average Overweight (x) . | . . . . Largest Inventory Capacity 10 | 8 8 10 10 Average Capacity 9 | 7 8 9 10 Most Carried 8 | 2 8 8 8 Average Carried 7 | . 5 7 7 Final Capacity 10 | 8 8 10 10 Final Carried 8 | 2 8 8 6 Class Distribution -------------------- 100% | Mutant Dominant Class ---------------- Mutant | -10/Materials Mutant | -10/Mines Mutant | -10/Subcaves Resources | -11 -10 -10 -10 ----------- Run | Yrd Mat Min Sub Matter Collected 454 | 219 142 79 14 Remotely . | . . . . Salvage Created 609 | . 337 227 45 Parts 42 | . 15 23 4 Haulers Intercepted . | . . . . Recyclers Shooed . | . . . . Parts Field Recycled . | . . . . Retrieved Matter . | . . . . Parts Self-Destructed 4 | . . . 4 Prevented . | . . . . Kills | -11 -10 -10 -10 ------- Run | Yrd Mat Min Sub Combat Hostiles Destroyed 18 | . 6 9 3 Guns 18 | . 6 9 3 Classes Destroyed 5 | . 3 2 . Worker 1 | . 1 . . Tunneler 2 | . . 2 . Recycler 1 | . 1 . . Swarmer 10 | . . 7 3 Grunt 8 | . 6 2 . Best Kill Streak 3 | . 3 3 3 Combat Bots Only 3 | . 2 3 3 Max Kills in Single Turn 1 | . 1 1 1 Gunslinging . | . . . . Exploded . | . . . . Melee . | . . . . Uniques/NPCs Destroyed . | . . . . Combat | -11 -10 -10 -10 -------- Run | Yrd Mat Min Sub Hostile Shots Fired 92 | . 25 35 32 Missed 19 | . 5 6 8 Damage Taken 864 | . 264 318 282 Core 251 | . 38 76 137 Absorbed by Shields . | . . . . Core Remaining (%) 100 | 100 . . . Volleys Fired 63 | . 23 26 14 Largest 2 | . 2 2 2 Hottest 70 | . 70 70 70 Shots Fired 124 | . 46 50 28 Gun 124 | . 46 50 28 Cannon . | . . . . Launcher . | . . . . Special . | . . . . Kinetic 61 | . 23 24 14 Thermal 63 | . 23 26 14 Explosive . | . . . . Electromagnetic . | . . . . Robot Hit Streak 8 | . 8 7 7 Robot Miss Streak 5 | . 2 5 2 Penetration Max . | . . . . Secondary Targets 2 | . . . 2 Max Gunslinging Chain 1 | . . . 1 Shots Hit Robots 81 | . 32 29 20 Core Hits 38 | . 17 15 6 Critical Kills . | . . . . Critical Parts Destroyed . | . . . . Critical Strikes 8 | . 5 2 1 Burn 8 | . 5 2 1 Melee Attacks . | . . . . Impact . | . . . . Slashing . | . . . . Piercing . | . . . . Sneak Attacks . | . . . . Combat Hostiles . | . . . . Follow-up Attacks . | . . . . Damage Inflicted 946 | . 410 324 212 Guns 946 | . 410 324 212 Cannons . | . . . . Explosions . | . . . . Melee . | . . . . Ramming . | . . . . Kinetic 393 | . 195 111 87 Thermal 553 | . 215 213 125 Explosive . | . . . . Electromagnetic . | . . . . Impact . | . . . . Slashing . | . . . . Piercing . | . . . . Highest Corruption . | . . . . Average Corruption . | . . . . Corruption Purged . | . . . . Corruption Blocked . | . . . . Overload Shots . | . . . . Overflow Damage . | . . . . Projectiles . | . . . . Explosions . | . . . . Melee . | . . . . Knockbacks . | . . . . Impact . | . . . . Kinetic . | . . . . Secondary . | . . . . Self-Inflicted Damage . | . . . . Shots . | . . . . Rammed . | . . . . Targets Rammed . | . . . . Kicked . | . . . . Crushed . | . . . . Highest Temperature 258 | . 132 258 . Average Temperature 59 | . 46 74 . Received Heat Transfer 312 | . 147 123 42 Siege Activations . | . . . . Robots Corrupted . | . . . . Combat Hostiles . | . . . . Parts Fried . | . . . . Impact Corruptions . | . . . . Robots Melted . | . . . . Combat Hostiles . | . . . . Parts Melted 5 | . 2 3 . Heat Transferred 2220 | . 999 777 444 Parts Sabotaged . | . . . . Parts Stolen . | . . . . Parts Stripped . | . . . . Power Chain Reactions . | . . . . Alert | -11 -10 -10 -10 ------- Run | Yrd Mat Min Sub Peak Influence 167 | . 147 167 . Initial 57 | . . 57 . Average 63 | . 92 58 . Maximum Alert Level . | . . . . Low Security (%) 100 | 100 100 100 . Level 1 . | . . . . Level 2 . | . . . . Level 3 . | . . . . Level 4 . | . . . . Level 5 . | . . . . High Security . | . . . . Max Security . | . . . . Squads Dispatched . | . . . . Investigation . | . . . . Extermination . | . . . . Reinforcement . | . . . . Assault . | . . . . Garrison . | . . . . Intercept . | . . . . Searches Triggered . | . . . . Construction Impeded . | . . . . Haulers Reinforced . | . . . . Active Scanning Responses . | . . . . Cargo Convoy Interrupts . | . . . . Stealth | -11 -10 -10 -10 --------- Run | Yrd Mat Min Sub Distress Signals . | . . . . Communications Jammed . | . . . . Distress Signals . | . . . . Times Spotted 22 | . 8 9 5 Peak Tracking Total 3 | . 2 3 3 Tactical Retreats . | . . . . Traps | -11 -10 -10 -10 ------- Run | Yrd Mat Min Sub Traps Triggered . | . . . . Indirectly . | . . . . Trap Hack Attempts . | . . . . Triggered . | . . . . Disarmed . | . . . . Reprogrammed . | . . . . Reused . | . . . . Traps Extracted . | . . . . Installed . | . . . . Triggered . | . . . . Machines | -11 -10 -10 -10 ---------- Run | Yrd Mat Min Sub Machines Disabled . | . . . . Max in Single Turn . | . . . . Machines Repaired . | . . . . Machines Dismantled . | . . . . Machines Sabotaged . | . . . . Overloaded Fab Kills . | . . . . Hacking | -11 -10 -10 -10 --------- Run | Yrd Mat Min Sub Machines Accessed 2 | . 2 . . Terminals 2 | . 2 . . Fabricators . | . . . . Repair Stations . | . . . . Recycling Units . | . . . . Scanalyzers . | . . . . Garrison Access . | . . . . Total Hacks 7 | . 7 . . Successful 4 | . 4 . . Failed 3 | . 3 . . Catastrophic . | . . . . Database Lockouts . | . . . . Manual . | . . . . Terminals 7 | . 7 . . Fabricators . | . . . . Repair Stations . | . . . . Recycling Units . | . . . . Scanalyzers . | . . . . Garrison Access . | . . . . Terminal Hacks 4 | . 4 . . Robot Analysis 2 | . 2 . . Branch Access Points 1 | . 1 . . Zone Layout 1 | . 1 . . Fabricator Hacks . | . . . . Repair Station Hacks . | . . . . Recycling Unit Hacks . | . . . . Scanalyzer . | . . . . Garrison Access Hacks . | . . . . Unauthorized Hacks . | . . . . Terminals . | . . . . Fabricators . | . . . . Repair Stations . | . . . . Recycling Units . | . . . . Scanalyzers . | . . . . Garrison Access . | . . . . Data Cores Recovered . | . . . . Used . | . . . . Hacking Detections 2 | . 2 . . Full Trace Events . | . . . . Feedback Events . | . . . . Feedback Blocked . | . . . . Robot Schematics Acquired . | . . . . Robots Built . | . . . . Authchips . | . . . . Time . | . . . . Total Robot Build Rating . | . . . . Part Schematics Acquired . | . . . . Parts Built . | . . . . Authchips . | . . . . Time . | . . . . Total Part Build Rating . | . . . . Parts Repaired . | . . . . Time . | . . . . Parts Recycled . | . . . . Recycled Matter . | . . . . Retrieved Matter . | . . . . Retrieved Components . | . . . . Parts Scanalyzed . | . . . . Part Schematics Acquired . | . . . . Parts Damaged . | . . . . Bothacking | -11 -10 -10 -10 ------------ Run | Yrd Mat Min Sub Used RIF Installer . | . . . . Robots Hacked . | . . . . Non-combat . | . . . . Combat . | . . . . Robot Hacks Applied . | . . . . Relay Couplers Released . | . . . . Fabnet Peak Effective % . | . . . . Robots Rewired . | . . . . Allies Hacked . | . . . . Hacks Repelled . | . . . . Allies | -11 -10 -10 -10 -------- Run | Yrd Mat Min Sub Total Allies . | . . . . Largest Group . | . . . . Highest-Rated Group . | . . . . Highest-Rated Ally . | . . . . Total Orders . | . . . . Ally Attacks . | . . . . Total Damage . | . . . . Kills . | . . . . Allies Corrupted . | . . . . Allies Melted . | . . . . Intel | -11 -10 -10 -10 ------- Run | Yrd Mat Min Sub Robot Analysis Total 2 | . 2 . . Derelict Logs Recovered 1 | . . 1 . Drone Launches . | . . . . Drone Recoveries . | . . . . Exploration | -11 -10 -10 -10 ------------- Run | Yrd Mat Min Sub Turns Passed 1264 | 50 276 799 139 Spaces Moved 1107 | 41 197 760 109 Core 7 | 7 . . . Treads . | . . . . Legs . | . . . . Wheels 1100 | 34 197 760 109 Hover . | . . . . Flight . | . . . . Fastest Speed 50 | 50 80 90 90 Average Speed 89 | 95 88 90 90 Slowest Speed 250 | 250 95 90 115 Overloaded Moves . | . . . . Propulsion Burnouts . | . . . . Robots Hopped . | . . . . Cave-ins Triggered . | . . . . Exploration Rate (%) 40 | 3 46 100 13 Regions Visited 3 Branch Regions 2 Pre-discovered Areas . | . . . . Known Exits Taken 1 | . 1 . . Unknown Exits Taken 2 | 1 . 1 . Scrap Searched 3 | . . 3 . Spaces Dug . | . . . . Terrain Destroyed . | . . . . Melee . | . . . . Projectile . | . . . . AOE . | . . . . Terrain Rammed . | . . . . Walls Destroyed . | . . . . Machines Disabled . | . . . . Actions | -11 -10 -10 -10 --------- Run | Yrd Mat Min Sub Total 1254 | 48 252 829 125 Wait 46 | . 17 29 . Move 1104 | 40 196 759 109 Hop . | . . . . Pick Up 17 | 2 9 6 . Fast Attach 9 | 6 2 1 . Attach 5 | . . 3 2 Detach . | . . . . Swap 3 | . 2 1 . Drop 7 | . 3 4 . Fire 63 | . 23 26 14 Melee . | . . . . Ram . | . . . . Kick . | . . . . Crush . | . . . . Escape Stasis . | . . . . Rewire . | . . . . Trap . | . . . . Miscellaneous . | . . . . Route ------- -11/Scrapyard -10/Materials (discovered 2 exits: *Mat / *Min) -10/Mines (discovered 3 exits: *Mat x2 / [*Sub]) -10/Subcaves History --------- Turn | Location | Event 28 | -11/Scrapyard | Discovered new exit (range 16) 51 | -11/Scrapyard | Entered Materials 68 | -10/Materials | Identified exit to Mines 264 | -10/Materials | Discovered new exit (range 3) 303 | -10/Materials | Build established: Mutant 327 | -10/Materials | Entered Mines 486 | -10/Mines | Identified exit to Materials 541 | -10/Mines | Discovered exit to Materials (range 13) 1119 | -10/Mines | Discovered new exit (range 6) 1126 | -10/Mines | Entered Subcaves 1207 | -10/Subcaves | Core integrity fell below 50% 1262 | -10/Subcaves | Core integrity fell below 20% 1265 | -10/Subcaves | Destroyed by GL-AX6(R) with Subdweller Laser Last Messages --------------- LOCATION=UNKNOWN AMBIENT_HEAT=-10 GOAL=ESCAPE 01193_ S-10 Pest destroyed. 01193_ Switching to secondary target: S-10 Pest. 01200_ Wheel destroyed. 01201_ Subatomizers dissect the Lgt. Assault Rifle. 01202_ Lgt. Assault Rifle fries itself beyond repair. 01210_ S-10 Pest destroyed. 01210_ Switching to secondary target: S-10 Pest. 01213_ S-10 Pest destroyed. 01214_ Subatomizers dissect the Flight Unit. 01217_ Flight Unit fries itself beyond repair. 01218_ Acquired 14 matter. 01228_ Lgt. Assault Rifle fries itself beyond repair. 01248_ GL-AX6(R) suffers critical hit (Burn). 01253_ Lgt. Assault Rifle destroyed. Map ----- +----------------------------------------------------+ | ????????????# [ ### #??????? | | ????????????## ## % ## #??????? | | ???????##???## ##% ## #??????? | | ??????## #### ### #??????? | | ??????# ## #?# ##?????? | | ??????# ### ## #?# #?????? | | ## ###?#### #### #?????? | | ##????## ### #?????? | | ?# #?????# ## ###?????? | | ??## # # #?????# ## ###????? | | ???# ! # #????## #### ## #????? | | ???# %= # ## #????## ## #????? | | ## ## ### #?????## #????? | | ? ??# ?## ##### ##??????# ## #????? | | ? ?????## ???# ##??##???????## #### #????? | | ?????????# ???# ##???????????### #??####????? | | ?????????#????## ######????????####??????????? | | ???????????????#### ## #???????###????????????? | | ??????????????????### #?????? #????????????? | | ????????????????????## ###### #????????????? | | ?????????????????????# #?????????????? | | ?????????????????????## #??????????????? | | ??????????????????????## ##??????????????? | | ???????????????????????# #???????????????? | | ??????????# #### R #???????????????? | | ???????????# @# ## #???????????????? | | ???????????# """ ##R ##??#???????????????? | | ????????????????? "" ?? #???????????????????? | | ????????????????# "" ??# #???????????????????? | | ????????????????# """ ??? ??????????????????? | | ???????????????? " #??? ?????????????????? | | ???????????????? #????? ## ????????????????? | | ??????????????? ###??????##? "???????????????? | | ??????????????? #?????????????""#??????????????? | | ???????????????? ????????????????##??????????????? | | ?????????????????????????????????????????????????? | | ?????????????????????????????????????????????????? | | ?????????????????????????????????????????????????? | | ?????????????????????????????????????????????????? | | ?????????????????????????????????????????????????? | | ?????????????????????????????????????????????????? | | ?????????????????????????????????????????????????? | | ?????????????????????????????????????????????????? | | ?????????????????????????????????????????????????? | | ?????????????????????????????????????????????????? | | ?????????????????????????????????????????????????? | | ?????????????????????????????????????????????????? | | ?????????????????????????????????????????????????? | | ?????????????????????????????????????????????????? | | ?????????????????????????????????????????????????? | +----------------------------------------------------+ Best States ------------- Heat Dissipation 39 Energy Generation 10 Energy Capacity 250 Matter Stores 300 Matter Capacity 300 Sight Range 16 Terrain Scan Density 10 Armor Coverage 150 Evasion (%) 44 Item Schematics ----------------- None Robot Schematics ------------------ None Fabricated ------------ Nothing Alien Tech Used ----------------- None Achievements -------------- None Challenges ------------ None Game ------ Seed DerelictMassThermoblaster Manual? 0 Play Time 00:12:45 Cumulative 14.2 hours Start 2024.04.25 @ 21:23:43 End 2024.04.25 @ 21:35:29 Sessions 1 Manual Loads 0 Difficulty Rogue Special Mode None Game No. 20 Rogue 20 Adventurer 0 Explorer 0 Win Type - Total 0 Types 0/0/0/0/0/0/0/0/0 Lore% 18 Gallery% 18 Achievement% 17 Wizard Run 0 Options --------- Layout 1 ASCII 0 Keyboard 1 Movement Arrows Keybinds 0 Fullscreen 1 Font 24/Smallcaps Map View 50x35 Zoom Use 0% Tactical HUD 1 Map Filters NONE Filters NONE Steam 1 RUN: d8429011-e576-43fb-b48c-90543253c0f4